fUSD/lending_fUSD_20240527
["ID","MTS","AMOUNT","RATE_DAILY","PERIOD"]
[328070859,1716835211912,158.12,0.00013973,2]
[328071177,1716835652168,-155.0,0.00017226,2]
[328071179,1716835652189,-86.16619923,0.00017227,2]
[328071346,1716835831944,-447.30327148,0.00017229,2]
[328071347,1716835831954,-237.60036109,0.0001723,2]
[328071348,1716835831963,-497.69412741,0.00017231,2]
[328071349,1716835831972,-1382.51190983,0.00017256,2]
[328071351,1716835831982,-2132.50750441,0.00018,2]
[328071352,1716835831992,-163.0,0.00019452,2]
[328071353,1716835832002,-499.99,0.00019452,2]
[328071354,1716835832011,-3814.0,0.00019726,2]
[328071355,1716835832021,-170.59,0.00019726,2]
[328071356,1716835832030,-155.0,0.0002,2]
[328071357,1716835832039,-3450.0,0.000201,3]
[328071358,1716835832048,-1000.0,0.00021447,2]
[328071359,1716835832060,-209.29,0.00021448,2]
[328071360,1716835832069,-1000.0,0.00022441,2]
[328071361,1716835832079,-251.0,0.0002305,2]
[328071362,1716835832088,-197.52,0.0002308,2]
[328071363,1716835832097,-196.8,0.00023366,2]
[328071364,1716835832108,-156.52,0.0002339,2]
[328071365,1716835832117,-2000.0,0.00023567,2]
[328071366,1716835832126,-251.0,0.0002359,2]
[328071367,1716835832138,-250.0,0.00023599,2]
[328071368,1716835832148,-156.84,0.00023645,2]
[328071369,1716835832158,-209.29,0.00023712,2]
[328071370,1716835832167,-250.0,0.00023931,2]
[328071371,1716835832176,-156.52,0.00023999,2]
[328071372,1716835832185,-382.4,0.00024016,2]
[328071373,1716835832195,-251.0,0.0002414,2]
[328071375,1716835832205,-167.01,0.00024465,2]
[328071377,1716835832214,-156.52,0.00024608,2]
[328071379,1716835832224,-251.0,0.0002468,2]
[328071380,1716835832233,-171.0,0.00025,2]
[328071381,1716835832244,-153.43589182,0.00025165,2]
[328071382,1716835832253,-251.0,0.0002523,2]
[328071383,1716835832263,-153.43589182,0.0002529,2]
[328071384,1716835832272,-151.83882976,0.0002556,2]
[328071385,1716835832284,-160.68183302,0.00025666,2]
[328071386,1716835832295,-251.0,0.0002578,2]
[328071387,1716835832305,-167.99941387,0.00025937,2]
[328071388,1716835832314,-209.29,0.00025976,2]
[328071389,1716835832326,-153.43589182,0.00026019,2]
[328071390,1716835832336,-196.8,0.00026287,2]
[328071391,1716835832346,-150.0,0.00026319,2]
[328071392,1716835832356,-251.0,0.0002632,2]
[328071393,1716835832367,-150.0,0.00026428,2]
[328071394,1716835832376,-151.83882976,0.00026471,2]
[328071395,1716835832386,-300.0,0.00026658,2]
[328071396,1716835832396,-150.0,0.00026729,2]
[328071397,1716835832405,-150.0,0.00026766,2]
[328071398,1716835832415,-151.22441975,0.0002677,2]
[328071399,1716835832424,-155.39285354,0.00026798,2]
[328071400,1716835832434,-925.4028204,0.00026798,2]
[328071401,1716835832444,-18313.79447399,0.00026799,2]
[328071402,1716835832628,-623.49284241,0.00026799,2]
[328071403,1716835832649,-299843.66960571,0.000268,2]
[328071404,1716835832659,-251.0,0.0002687,2]
[328071405,1716835832668,-1170.97754067,0.00026892,2]
[328071406,1716835832678,-150.0,0.00026992,2]
[328071407,1716835832687,-382.4,0.00027017,2]
[328071408,1716835832697,-150.0,0.00027115,2]
[328071409,1716835832706,-150.0,0.00027295,2]
[328071410,1716835832715,-317.62,0.00027414,2]
[328071411,1716835832726,-157.47813499,0.00027417,2]
[328071412,1716835832735,-251.0,0.0002742,2]
[328071413,1716835832748,-150.0,0.00027482,2]
[328071414,1716835832757,-150.0,0.00027517,2]
[328071415,1716835832767,-150.0,0.00027552,2]
[328071416,1716835832776,-150.0,0.00027558,2]
[328071417,1716835832785,-1170.97754067,0.00027601,2]
[328071418,1716835832796,-150.0,0.00027673,2]
[328071419,1716835832806,-150.0,0.00027678,2]
[328071420,1716835832815,-150.0,0.00027718,2]
[328071421,1716835832826,-150.0,0.00027719,2]
[328071422,1716835832835,-150.0,0.00027739,2]
[328071423,1716835832845,-150.0,0.00027746,2]
[328071424,1716835832854,-150.0,0.0002778,2]
[328071425,1716835832864,-212.27192449,0.00027804,2]
[328071426,1716835832874,-150.0,0.00027888,2]
[328071427,1716835832883,-150.0,0.00027926,2]
[328071428,1716835832892,-150.0,0.00027929,2]
[328071429,1716835832902,-251.0,0.0002796,2]
[328071430,1716835832911,-150.0,0.00028027,2]
[328071431,1716835832920,-150.0,0.00028056,2]
[328071432,1716835832930,-151.22441975,0.0002807,2]
[328071433,1716835832940,-153.76513485,0.00028084,2]
[328071434,1716835832950,-150.0,0.00028087,2]
[328071435,1716835832959,-150.0,0.00028147,2]
[328071436,1716835832968,-209.29,0.0002824,2]
[328071437,1716835832977,-150.0,0.00028263,2]
[328071438,1716835832986,-150.0,0.0002828,2]
[328071439,1716835832998,-150.0,0.00028284,2]
[328071440,1716835833007,-1170.97754067,0.00028309,2]
[328071441,1716835833016,-150.0,0.00028377,2]
[328071442,1716835833025,-150.0,0.00028408,2]
[328071443,1716835833034,-150.0,0.00028416,2]
[328071444,1716835833044,-251.0,0.0002851,2]
[328071445,1716835833053,-150.0,0.00028575,2]
[328071446,1716835833067,-150.0,0.00028631,2]
[328071447,1716835833076,-150.0,0.00028685,2]
[328071448,1716835833086,-150.0,0.00028701,2]
[328071449,1716835833095,-150.0,0.00028707,2]
[328071450,1716835833106,-150.0,0.00028806,2]
[328071451,1716835833116,-150.0,0.00028807,2]
[328071452,1716835833125,-150.0,0.00028875,2]
[328071453,1716835833135,-151.83882976,0.00028875,2]
[328071454,1716835833147,-150.0,0.00028876,2]
[328071455,1716835833156,-150.0,0.000289,2]
[328071456,1716835833166,-153.43589182,0.00028911,2]
[328071457,1716835833175,-1170.97754067,0.00029018,2]
[328071458,1716835833184,-251.0,0.0002905,2]
[328071459,1716835833194,-150.0,0.00029101,2]
[328071460,1716835833203,-150.0,0.00029105,2]
[328071461,1716835833212,-150.0,0.00029206,2]
[328071462,1716835833221,-196.8,0.00029207,2]
[328071463,1716835833230,-158.12,0.00029349,2]
[328071464,1716835833240,-150.0,0.00029362,2]
[328071465,1716835833251,-151.22441975,0.0002937,2]
[328071466,1716835833260,-153.43589182,0.00029435,2]
[328071467,1716835833269,-151.23335645,0.00029438,2]
[328071468,1716835833279,-150.0,0.00029516,2]
[328071469,1716835833290,-150.0,0.00029529,2]
[328071470,1716835833299,-150.0,0.0002958,2]
[328071471,1716835833308,-150.0,0.00029582,2]
[328071472,1716835833318,-251.0,0.000296,2]
[328071473,1716835833328,-150.0,0.00029603,2]
[328071474,1716835833340,-150.0,0.00029621,2]
[328071475,1716835833349,-150.0,0.00029717,2]
[328071476,1716835833358,-1170.97754067,0.00029727,2]
[328071477,1716835833367,-150.0,0.00029878,2]
[328071478,1716835833377,-1000.0,0.0003,6]
[328071479,1716835833386,-1000.0,0.0003,5]
[328071480,1716835833395,-1000.0,0.0003,7]
[328071481,1716835833405,-1000.0,0.0003,7]
[328071482,1716835833414,-150.0,0.00030001,2]
[328071483,1716835833423,-150.0,0.0003001,2]
[328071484,1716835833432,-382.4,0.00030019,2]
[328071485,1716835833442,-527.6961156,0.00030036,2]
[328071486,1716835833451,-166.62728962,0.00030036,2]
[328071487,1716835833460,-328.84159494,0.00030036,2]
[328071488,1716835833470,-884.887276,0.00030134,4]
[328071489,1716835833480,-234.24959519,0.00030134,4]
[328071490,1716835833489,-480.94869717,0.00030134,4]
[328071491,1716835833501,-500.0,0.00030136,6]
[328071492,1716835833510,-503.5815367,0.00030136,6]
[328071493,1716835833519,-17200.18913813,0.00030136,2]
[328071494,1716835833528,-1044.31301003,0.00030136,4]
[328071495,1716835833538,-263.78612304,0.00030136,6]
[328071496,1716835833547,-500.0,0.00030136,6]
[328071497,1716835833556,-530.86186744,0.00030136,6]
[328071498,1716835833565,-500.0,0.00030136,6]
[328071499,1716835833575,-517.08299794,0.00030136,6]
[328071500,1716835833584,-526.94817839,0.00030136,6]
[328071501,1716835833593,-345.17947633,0.00030136,6]
[328071502,1716835833602,-200.83020031,0.00030136,6]
[328071503,1716835833611,-500.0,0.00030136,6]
[328071504,1716835833621,-530.53310325,0.00030136,6]
[328071505,1716835833630,-516.94036142,0.00030136,6]
[328071506,1716835833639,-181.84158337,0.00030136,6]
[328071507,1716835833648,-534.08246242,0.00030136,6]
[328071508,1716835833658,-504.39808375,0.00030136,6]
[328071509,1716835833667,-501.01880385,0.00030136,6]
[328071510,1716835833677,-605.03413379,0.00030136,6]
[328071511,1716835833686,-512.13011502,0.00030136,6]
[328071512,1716835833695,-509.1388204,0.00030136,6]
[328071513,1716835833704,-500.0,0.00030136,6]
[328071514,1716835833713,-447.80409919,0.00030136,6]
[328071515,1716835833722,-503.37213802,0.00030136,6]
[328071516,1716835833732,-510.78364686,0.00030136,6]
[328071517,1716835833743,-531.54666758,0.00030136,6]
[328071518,1716835833752,-464.68,0.00030136,6]
[328071519,1716835833762,-500.0,0.00030136,6]
[328071520,1716835833771,-500.0,0.00030136,6]
[328071521,1716835833780,-224.27,0.00030136,6]
[328071522,1716835833790,-500.0,0.00030136,6]
[328071523,1716835833800,-443.16,0.00030136,6]
[328071524,1716835833809,-500.0,0.00030136,6]
[328071525,1716835833819,-500.0,0.00030136,6]
[328071526,1716835833828,-304.18,0.00030136,6]
[328071527,1716835833837,-412.96,0.00030136,6]
[328071528,1716835833847,-326.14,0.00030136,6]
[328071529,1716835833856,-187.36,0.00030136,6]
[328071530,1716835833865,-500.0,0.00030136,6]
[328071531,1716835833874,-500.0,0.00030136,6]
[328071532,1716835833884,-500.0,0.00030136,6]
[328071533,1716835833893,-500.0,0.00030136,6]
[328071534,1716835833902,-386.25436708,0.00030136,6]
[328071535,1716835833911,-500.0,0.00030136,6]
[328071536,1716835833921,-500.0,0.00030136,6]
[328071537,1716835833930,-500.0,0.00030136,6]
[328071538,1716835833939,-500.0,0.00030136,6]
[328071539,1716835833948,-340.18,0.00030136,6]
[328071540,1716835833958,-391.52,0.00030136,6]
[328071541,1716835833967,-500.0,0.00030136,6]
[328071542,1716835833976,-235.85,0.00030136,6]
[328071543,1716835833985,-500.0,0.00030136,6]
[328071544,1716835833995,-316.8,0.00030136,6]
[328071545,1716835834005,-500.0,0.00030136,6]
[328071546,1716835834014,-500.0,0.00030136,6]
[328071547,1716835834023,-430.09,0.00030136,6]
[328071548,1716835834033,-500.0,0.00030136,6]
[328071549,1716835834042,-500.0,0.00030136,6]
[328071550,1716835834051,-500.0,0.00030136,6]
[328071551,1716835834064,-519.36059845,0.00030136,6]
[328071552,1716835834073,-544.11,0.00030136,6]
[328071553,1716835834082,-500.0,0.00030136,6]
[328071554,1716835834091,-500.0,0.00030136,6]
[328071555,1716835834101,-500.0,0.00030136,6]
[328071556,1716835834110,-500.0,0.00030136,6]
[328071557,1716835834119,-163.03,0.00030136,6]
[328071558,1716835834128,-500.0,0.00030136,6]
[328071559,1716835834143,-335.13,0.00030136,6]
[328071560,1716835834152,-500.0,0.00030136,6]
[328071561,1716835834163,-543.26065121,0.00030136,6]
[328071562,1716835834172,-508.5906064,0.00030136,6]
[328071563,1716835834181,-506.46067836,0.00030136,6]
[328071564,1716835834190,-500.0,0.00030136,6]
[328071565,1716835834200,-500.0,0.00030136,6]
[328071566,1716835834210,-490.45,0.00030136,6]
[328071567,1716835834219,-519.30906488,0.00030136,6]
[328071568,1716835834229,-163.44973009,0.00030136,6]
[328071569,1716835834238,-500.0,0.00030136,6]
[328071570,1716835834248,-500.0,0.00030136,6]
[328071571,1716835834258,-500.0,0.00030136,6]
[328071572,1716835834266,-500.0,0.00030136,6]
[328071573,1716835834275,-408.32470415,0.00030136,6]
[328071574,1716835834285,-350.76,0.00030136,6]
[328071575,1716835834294,-500.0,0.00030136,6]
[328071576,1716835834303,-500.0,0.00030136,6]
[328071577,1716835834312,-500.0,0.00030136,6]
[328071578,1716835834321,-500.0,0.00030136,6]
[328071579,1716835834330,-178.75,0.00030136,6]
[328071580,1716835834339,-500.0,0.00030136,6]
[328071581,1716835834349,-500.00007538,0.00030136,6]
[328071582,1716835834358,-500.0,0.00030136,6]
[328071583,1716835834367,-500.0,0.00030136,6]
[328071584,1716835834376,-500.0,0.00030136,6]
[328071585,1716835834385,-500.0,0.00030136,6]
[328071586,1716835834394,-624.9,0.00030136,6]
[328071587,1716835834404,-500.0,0.00030136,6]
[328071588,1716835834413,-500.0,0.00030136,6]
[328071589,1716835834422,-500.0,0.00030136,6]
[328071590,1716835834432,-500.0,0.00030136,6]
[328071591,1716835834443,-349.72,0.00030136,6]
[328071592,1716835834454,-260.61423449,0.00030136,6]
[328071593,1716835834463,-500.0,0.00030136,6]
[328071594,1716835834472,-500.0,0.00030136,6]
[328071595,1716835834481,-343.05,0.00030136,6]
[328071596,1716835834490,-500.0,0.00030136,6]
[328071597,1716835834500,-570.13238284,0.00030136,6]
[328071598,1716835834509,-500.0,0.00030136,6]
[328071599,1716835834518,-500.0,0.00030136,6]
[328071600,1716835834527,-506.08903467,0.00030136,6]
[328071601,1716835834536,-500.0,0.00030136,6]
[328071602,1716835834546,-500.0,0.00030136,6]
[328071603,1716835834555,-556.95129962,0.00030136,6]
[328071604,1716835834564,-500.0,0.00030136,6]
[328071605,1716835834573,-183.02,0.00030136,6]
[328071606,1716835834582,-500.0,0.00030136,6]
[328071607,1716835834591,-500.0,0.00030136,6]
[328071608,1716835834600,-420.02,0.00030136,6]
[328071609,1716835834609,-569.15672027,0.00030136,6]
[328071610,1716835834617,-500.0,0.00030136,6]
[328071611,1716835834626,-500.0,0.00030136,6]
[328071612,1716835834636,-500.0,0.00030136,6]
[328071613,1716835834645,-502.44557333,0.00030136,6]
[328071614,1716835834654,-500.0,0.00030136,6]
[328071615,1716835834663,-270.82,0.00030136,6]
[328071616,1716835834673,-500.0,0.00030136,6]
[328071617,1716835834682,-500.0,0.00030136,6]
[328071618,1716835834691,-500.0,0.00030136,6]
[328071619,1716835834701,-455.1492661,0.00030136,6]
[328071620,1716835834710,-252.6958544,0.00030136,6]
[328071621,1716835834719,-500.0,0.00030136,6]
[328071622,1716835834728,-500.0,0.00030136,6]
[328071623,1716835834737,-500.0,0.00030136,6]
[328071624,1716835834748,-500.0,0.00030136,6]
[328071625,1716835834757,-500.0,0.00030136,6]
[328071626,1716835834767,-500.0,0.00030136,6]
[328071627,1716835834776,-500.0,0.00030136,6]
[328071628,1716835834786,-500.0,0.00030136,6]
[328071629,1716835834795,-500.0,0.00030136,6]
[328071630,1716835834804,-500.0,0.00030136,6]
[328071631,1716835834813,-500.0,0.00030136,6]
[328071632,1716835834822,-500.0,0.00030136,6]
[328071633,1716835834831,-442.11,0.00030136,6]
[328071634,1716835834840,-500.0,0.00030136,6]
[328071635,1716835834849,-500.0,0.00030136,6]
[328071636,1716835834859,-500.0,0.00030136,6]
[328071637,1716835834868,-166.94,0.00030136,6]
[328071638,1716835834877,-500.0,0.00030136,6]
[328071639,1716835834886,-500.0,0.00030136,6]
[328071640,1716835834895,-500.0,0.00030136,6]
[328071641,1716835834904,-500.0,0.00030136,6]
[328071642,1716835834913,-500.0,0.00030136,6]
[328071643,1716835834923,-500.0,0.00030136,6]
[328071644,1716835834933,-500.0,0.00030136,6]
[328071645,1716835834942,-500.0,0.00030136,6]
[328071646,1716835834951,-500.0,0.00030136,6]
[328071647,1716835834961,-500.0,0.00030136,6]
[328071648,1716835834971,-500.0,0.00030136,6]
[328071649,1716835834980,-500.0,0.00030136,6]
[328071650,1716835834989,-500.0,0.00030136,6]
[328071651,1716835835000,-513.28003075,0.00030136,6]
[328071652,1716835835050,-629.34072166,0.00030136,6]
[328071653,1716835835061,-500.0,0.00030136,6]
[328071654,1716835835072,-500.0,0.00030136,6]
[328071655,1716835835082,-500.0,0.00030136,6]
[328071656,1716835835091,-500.0,0.00030136,6]
[328071657,1716835835101,-500.0,0.00030136,6]
[328071658,1716835835110,-500.0,0.00030136,6]
[328071659,1716835835119,-500.0,0.00030136,6]
[328071660,1716835835128,-500.0,0.00030136,6]
[328071661,1716835835137,-500.0,0.00030136,6]
[328071662,1716835835148,-500.0,0.00030136,6]
[328071663,1716835835157,-500.0,0.00030136,6]
[328071664,1716835835166,-500.0,0.00030136,6]
[328071665,1716835835176,-500.0,0.00030136,6]
[328071666,1716835835185,-500.0,0.00030136,6]
[328071667,1716835835194,-183.98880739,0.00030136,6]
[328071668,1716835835203,-500.0,0.00030136,6]
[328071669,1716835835211,-500.0,0.00030136,6]
[328071670,1716835835221,-500.0,0.00030136,6]
[328071671,1716835835230,-500.0,0.00030136,6]
[328071672,1716835835239,-500.0,0.00030136,6]
[328071673,1716835835250,-500.0,0.00030136,6]
[328071674,1716835835258,-500.0,0.00030136,6]
[328071675,1716835835267,-500.0,0.00030136,6]
[328071676,1716835835276,-500.0,0.00030136,6]
[328071677,1716835835285,-500.0,0.00030136,6]
[328071678,1716835835294,-500.0,0.00030136,6]
[328071679,1716835835303,-562.73434556,0.00030136,6]
[328071680,1716835835312,-500.0,0.00030136,6]
[328071681,1716835835321,-500.0,0.00030136,6]
[328071682,1716835835330,-500.0,0.00030136,6]
[328071683,1716835835339,-500.0,0.00030136,6]
[328071684,1716835835347,-500.0,0.00030136,6]
[328071685,1716835835357,-500.0,0.00030136,6]
[328071686,1716835835366,-500.0,0.00030136,6]
[328071687,1716835835375,-500.0,0.00030136,6]
[328071688,1716835835383,-500.0,0.00030136,6]
[328071689,1716835835392,-500.0,0.00030136,6]
[328071690,1716835835412,-500.0,0.00030136,6]
[328071691,1716835835422,-500.0,0.00030136,6]
[328071692,1716835835431,-500.0,0.00030136,6]
[328071693,1716835835440,-500.0,0.00030136,6]
[328071694,1716835835449,-500.0,0.00030136,6]
[328071695,1716835835458,-500.0,0.00030136,6]
[328071696,1716835835468,-355.48,0.00030136,6]
[328071697,1716835835478,-500.0,0.00030136,6]
[328071698,1716835835490,-500.0,0.00030136,6]
[328071699,1716835835502,-458.59812674,0.00030136,6]
[328071700,1716835835511,-151.0,0.00030136,7]
[328071701,1716835835520,-500.0,0.00030136,6]
[328071702,1716835835529,-497.71,0.00030136,6]
[328071703,1716835835539,-151.0,0.00030136,7]
[328071704,1716835835551,-506.67083034,0.00030136,6]
[328071705,1716835835560,-151.0,0.00030136,7]
[328071706,1716835835569,-500.0,0.00030136,6]
[328071707,1716835835578,-500.0,0.00030136,6]
[328071708,1716835835588,-686.04,0.00030136,6]
[328071709,1716835835597,-500.0,0.00030136,6]
[328071710,1716835835608,-686.04,0.00030136,6]
[328071711,1716835835618,-686.04,0.00030136,6]
[328071712,1716835835628,-500.0,0.00030136,6]
[328071713,1716835835638,-686.04,0.00030136,6]
[328071714,1716835835647,-500.0,0.00030136,6]
[328071715,1716835835657,-500.0,0.00030136,6]
[328071716,1716835835666,-622.3,0.00030136,6]
[328071717,1716835835676,-500.0,0.00030136,6]
[328071718,1716835835685,-500.0,0.00030136,6]
[328071719,1716835835694,-500.0,0.00030136,6]
[328071720,1716835835704,-500.0,0.00030136,6]
[328071721,1716835835714,-500.0,0.00030136,6]
[328071722,1716835835723,-500.0,0.00030136,6]
[328071723,1716835835732,-162.77194463,0.00030136,6]
[328071724,1716835835742,-500.0,0.00030136,6]
[328071725,1716835835753,-500.0,0.00030136,6]
[328071726,1716835835763,-641.09,0.00030136,6]
[328071727,1716835835773,-563.84,0.00030136,6]
[328071728,1716835835783,-500.0,0.00030136,6]
[328071729,1716835835793,-563.84,0.00030136,6]
[328071730,1716835835803,-500.0,0.00030136,6]
[328071731,1716835835812,-563.84,0.00030136,6]
[328071732,1716835835822,-608.8,0.00030136,6]
[328071733,1716835835831,-500.0,0.00030136,6]
[328071734,1716835835841,-563.84,0.00030136,6]
[328071735,1716835835851,-500.0,0.00030136,6]
[328071736,1716835835861,-500.0,0.00030136,6]
[328071737,1716835835870,-500.0,0.00030136,6]
[328071738,1716835835880,-500.0,0.00030136,6]
[328071739,1716835835889,-500.0,0.00030136,6]
[328071740,1716835835899,-500.0,0.00030136,6]
[328071741,1716835835908,-500.0,0.00030136,6]
[328071742,1716835835917,-500.0,0.00030136,6]
[328071743,1716835835927,-500.0,0.00030136,6]
[328071744,1716835835937,-500.0,0.00030136,6]
[328071745,1716835835946,-500.0,0.00030136,6]
[328071746,1716835835956,-500.0,0.00030136,6]
[328071747,1716835835966,-500.0,0.00030136,6]
[328071748,1716835835976,-500.0,0.00030136,6]
[328071749,1716835835985,-500.0,0.00030136,6]
[328071750,1716835835995,-500.0,0.00030136,6]
[328071751,1716835836004,-500.0,0.00030136,6]
[328071752,1716835836021,-500.0,0.00030136,6]
[328071753,1716835836031,-500.0,0.00030136,6]
[328071754,1716835836041,-500.0,0.00030136,6]
[328071755,1716835836051,-500.0,0.00030136,6]
[328071756,1716835836063,-500.0,0.00030136,6]
[328071757,1716835836073,-500.0,0.00030136,6]
[328071758,1716835836083,-323.92,0.00030136,6]
[328071759,1716835836093,-500.0,0.00030136,6]
[328071760,1716835836103,-500.0,0.00030136,6]
[328071761,1716835836113,-500.0,0.00030136,6]
[328071762,1716835836123,-500.0,0.00030136,6]
[328071763,1716835836133,-500.0,0.00030136,6]
[328071764,1716835836144,-500.0,0.00030136,6]
[328071765,1716835836154,-500.0,0.00030136,6]
[328071766,1716835836164,-381.92,0.00030136,6]
[328071767,1716835836174,-500.0,0.00030136,6]
[328071768,1716835836183,-500.0,0.00030136,6]
[328071769,1716835836193,-491.12872131,0.00030136,6]
[328071770,1716835836202,-500.0,0.00030136,6]
[328071771,1716835836212,-500.0,0.00030136,6]
[328071772,1716835836221,-500.0,0.00030136,6]
[328071773,1716835836230,-500.0,0.00030136,6]
[328071774,1716835836240,-500.0,0.00030136,6]
[328071775,1716835836251,-500.0,0.00030136,6]
[328071776,1716835836261,-269.16,0.00030136,6]
[328071777,1716835836271,-500.0,0.00030136,6]
[328071778,1716835836281,-500.0,0.00030136,6]
[328071779,1716835836291,-500.0,0.00030136,6]
[328071780,1716835836300,-500.0,0.00030136,6]
[328071781,1716835836310,-500.0,0.00030136,6]
[328071782,1716835836320,-500.0,0.00030136,6]
[328071783,1716835836329,-500.0,0.00030136,6]
[328071784,1716835836339,-500.0,0.00030136,6]
[328071785,1716835836349,-500.0,0.00030136,6]
[328071786,1716835836358,-500.0,0.00030136,6]
[328071787,1716835836368,-500.0,0.00030136,6]
[328071788,1716835836378,-529.76718752,0.00030136,6]
[328071789,1716835836388,-500.0,0.00030136,6]
[328071790,1716835836398,-500.0,0.00030136,6]
[328071791,1716835836408,-500.0,0.00030136,6]
[328071792,1716835836418,-500.0,0.00030136,6]
[328071793,1716835836428,-500.0,0.00030136,6]
[328071794,1716835836438,-500.0,0.00030136,6]
[328071795,1716835836447,-519.7,0.00030136,6]
[328071796,1716835836457,-500.0,0.00030136,6]
[328071797,1716835836467,-500.0,0.00030136,6]
[328071798,1716835836477,-500.0,0.00030136,6]
[328071799,1716835836488,-500.0,0.00030136,6]
[328071800,1716835836500,-500.0,0.00030136,6]
[328071801,1716835836510,-500.0,0.00030136,6]
[328071802,1716835836520,-500.0,0.00030136,6]
[328071803,1716835836530,-151.0,0.00030136,7]
[328071804,1716835836540,-534.16,0.00030136,6]
[328071805,1716835836549,-500.0,0.00030136,6]
[328071806,1716835836559,-500.0,0.00030136,6]
[328071807,1716835836569,-500.0,0.00030136,6]
[328071808,1716835836579,-500.0,0.00030136,6]
[328071809,1716835836588,-589.63,0.00030136,6]
[328071810,1716835836598,-500.0,0.00030136,6]
[328071811,1716835836608,-500.0,0.00030136,6]
[328071812,1716835836617,-500.0,0.00030136,6]
[328071813,1716835836627,-500.0,0.00030136,6]
[328071814,1716835836639,-500.0,0.00030136,6]
[328071815,1716835836649,-500.0,0.00030136,2]
[328071816,1716835836658,-500.0,0.00030136,2]
[328071817,1716835836668,-500.0,0.00030136,2]
[328071818,1716835836677,-500.0,0.00030136,2]
[328071819,1716835836687,-500.0,0.00030136,6]
[328071820,1716835836696,-500.0,0.00030136,6]
[328071821,1716835836706,-283.8167752,0.00030136,6]
[328071822,1716835836716,-500.0,0.00030136,6]
[328071823,1716835836725,-500.0,0.00030136,6]
[328071824,1716835836735,-500.0,0.00030136,6]
[328071825,1716835836746,-500.0,0.00030136,6]
[328071826,1716835836755,-500.0,0.00030136,6]
[328071827,1716835836764,-419.40623125,0.00030136,6]
[328071828,1716835836773,-500.0,0.00030136,6]
[328071829,1716835836782,-500.0,0.00030136,6]
[328071830,1716835836791,-500.0,0.00030136,6]
[328071831,1716835836801,-500.0,0.00030136,6]
[328071832,1716835836810,-500.0,0.00030136,6]
[328071833,1716835836820,-500.0,0.00030136,6]
[328071834,1716835836830,-500.0,0.00030136,6]
[328071835,1716835836839,-500.0,0.00030136,6]
[328071836,1716835836848,-500.0,0.00030136,6]
[328071837,1716835836858,-500.0,0.00030136,6]
[328071838,1716835836868,-500.0,0.00030136,6]
[328071839,1716835836877,-500.0,0.00030136,6]
[328071840,1716835836887,-500.0,0.00030136,6]
[328071841,1716835836896,-500.0,0.00030136,6]
[328071842,1716835836906,-500.0,0.00030136,6]
[328071843,1716835836916,-500.0,0.00030136,6]
[328071844,1716835836926,-500.0,0.00030136,6]
[328071845,1716835836936,-500.0,0.00030136,6]
[328071846,1716835836946,-500.0,0.00030136,6]